[Event "69th GRE-ch 2019"]
[Site "Thessaloniki"]
[Date "2019.11.23"]
[Round "4.3"]
[White "Megalios, Konstantinos"]
[Black "Kalogeris, Ioannis"]
[Result "1/2-1/2"]
[ECO "A35"]
[WhiteElo "2386"]
[BlackElo "2330"]
[Annotator "NA"]
[PlyCount "115"]
[EventDate "2019.11.20"]
[EventType "tourn"]
[EventCountry "GRE"]
[SourceTitle "playchess.com"]
[Source "ChessBase"]
[SourceQuality "1"]
[TimeControl "40/5400+30:1800+30"]

1. Nf3 {[%emt 0:00:00]} Nf6 {[%emt 0:08:18]} 2. c4 {[%emt 0:00:00]} c5 {[%emt 0:00:26]} 3. Nc3 {[%emt 0:00:20]} Nc6 {[%emt 0:00:25]} 4. d4 {[%emt 0:01:06]} cxd4 {[%emt 0:00:51]} 5. Nxd4 d5 {[%emt 0:02:56]} 6. cxd5 {[%emt 0:02:32]} Nxd5 {[%emt 0:01:08]} 7. Nxc6 {[%emt 0:00:34]} bxc6 {[%emt 0:00:02]} 8. Bd2 {[%emt 0:03:25]} g6 {[%emt 0:07:28]} 9. Nxd5 {[%emt 0:14:03]} Qxd5 {[%emt 0:10:18]} 10. Bc3 {[%emt 0:00:16]} f6 {[%emt 0:00:58]} 11. Qa4 {[%emt 0:01:58]} Qb5 {[%emt 0:01:38]} 12. Qc2 {[%emt 0:07:50]} e5 {[%emt 0:16:50]} 13. e3 {[%emt 0:11:02]} Qb6 {[%emt 0:07:18]} 14. Bc4 {[%emt 0:06:24]} Ba6 {[%emt 0:00:43]} 15. Qe2 {[%emt 0:02:31]} Bxc4 {[%emt 0:08:47]} 16. Qxc4 {[%emt 0:00:12]} Rd8 {[%emt 0:01:24]} 17. O-O Rd5 {[%emt 0:02:34]} 18. Rad1 {[%emt 0:10:24]} Qb5 {[%emt 0:01:38]} 19. Qg4 {[%emt 0:02:27]} f5 {[%emt 0:13:27]} 20. Rxd5 {[%emt 0:01:24]} Qxd5 {[%emt 0:02:25]} 21. Qa4 {[%emt 0:01:52]} Bc5 {[%emt 0:00:04]} 22. Rd1 {[%emt 0:01:43]} Qe6 {[%emt 0:00:43]} 23. Qa5 {[%emt 0:13:03]} Bb6 {[%emt 0:03:45]} 24. Qxe5 {[%emt 0:05:08]} Qxe5 {[%emt 0:00:05]} 25. Bxe5 {[%emt 0:00:03]} O-O {[%emt 0:00:20]} 26. Kf1 {[%emt 0:00:37]} Rd8 {[%emt 0:01:16]} 27. Rxd8+ {[%emt 0:00:24]} Bxd8 {[%emt 0:00:01]} 28. Ke2 {[%emt 0:00:32]} Kf7 {[%emt 0:00:38]} 29. Kd3 {[%emt 0:00:14]} Ke6 {[%emt 0:00:17]} 30. Bd4 {[%emt 0:00:41]} a6 {[%emt 0:02:11]} 31. Kc4 {[%emt 0:00:07]} Kd6 {[%emt 0:00:38]} 32. b3 {[%emt 0:01:15]} Ba5 {[%emt 0:01:39]} 33. f3 {[%emt 0:00:21]} Bc7 {[%emt 0:01:27]} 34. h3 {[%emt 0:01:34]} Bb8 {[%emt 0:00:51]} 35. e4 {[%emt 0:01:54]} fxe4 {[%emt 0:00:35]} 36. fxe4 {[%emt 0:00:03]} Ke6 {[%emt 0:01:16]} 37. Kb4 {[%emt 0:01:08]} Bc7 {[%emt 0:02:24]} 38. Kc5 {[%emt 0:00:30]} Kd7 {[%emt 0:00:01]} 39. Bf6 {[%emt 0:00:00]} h5 {[%emt 0:00:00]} 40. a4 {[%emt 0:00:00]} Ba5 {[%emt 0:00:00]} 41. b4 {[%emt 0:04:45]} Bc7 {[%emt 0:01:12]} 42. e5 {[%emt 0:00:27]} a5 {[%emt 0:01:38]} 43. b5 {[%emt 0:02:26]} cxb5 {[%emt 0:03:00]} 44. axb5 {[%emt 0:06:01]} Ke6 {[%emt 0:03:59]} 45. b6 {[%emt 0:03:55]} Bxb6+ {[%emt 0:00:20]} 46. Kxb6 {[%emt 0:00:03]} a4 {[%emt 0:00:08]} 47. Bg5 {[%emt 0:00:34]} Kxe5 {[%emt 0:00:18]} 48. Bc1 {[%emt 0:03:36]} h4 {[%emt 0:03:04]} 49. Kc6 {[%emt 0:12:38]} g5 {[%emt 0:03:32]} 50. Kd7 {[%emt 0:02:34]} Kf5 {[%emt 0:02:56]} 51. Kd6 {[%emt 0:06:51]} g4 {[%emt 0:00:48]} 52. Kd5 {[%emt 0:00:11]} gxh3 {[%emt 0:00:55]} 53. gxh3 {[%emt 0:00:01]} a3 {[%emt 0:00:10]} 54. Bxa3 {[%emt 0:00:06]} Kf4 {[%emt 0:00:03]} 55. Bd6+ {[%emt 0:00:09]} Kf3 {[%emt 0:00:04]} 56. Ke5 {[%emt 0:00:22]} Kg3 {[%emt 0:00:11]} 57. Ke4+ {[%emt 0:00:06]} Kxh3 {[%emt 0:00:04]} 58. Kf3 1/2-1/2

[Event "69th GRE-ch 2019"]
[Site "Thessaloniki"]
[Date "2019.11.23"]
[Round "4.4"]
[White "Kanakaris, Georgios"]
[Black "Koutoukidis, Panagiotis"]
[Result "1/2-1/2"]
[ECO "D78"]
[WhiteElo "2395"]
[BlackElo "2412"]
[Annotator "NA"]
[PlyCount "33"]
[EventDate "2019.11.20"]
[EventType "tourn"]
[EventCountry "GRE"]
[SourceTitle "playchess.com"]
[Source "ChessBase"]
[SourceQuality "1"]
[TimeControl "40/5400+30:1800+30"]

1. d4 {[%emt 0:00:00]} Nf6 {[%emt 0:00:00]} 2. Nf3 {[%emt 0:00:00]} d5 {[%emt 0:00:07]} 3. g3 {[%emt 0:01:30]} g6 {[%emt 0:01:01]} 4. Bg2 {[%emt 0:00:23]} Bg7 {[%emt 0:00:16]} 5. O-O {[%emt 0:00:37]} O-O {[%emt 0:02:07]} 6. c4 {[%emt 0:00:22]} c6 {[%emt 0:00:18]} 7. b3 {[%emt 0:04:43]} Bf5 {[%emt 0:07:41]} 8. Bb2 {[%emt 0:00:32]} Nbd7 {[%emt 0:01:24]} 9. Nc3 {[%emt 0:04:40]} dxc4 {[%emt 0:12:25]} 10. bxc4 {[%emt 0:01:13]} Nb6 {[%emt 0:00:14]} 11. c5 {[%emt 0:05:44]} Nc4 {[%emt 0:00:32]} 12. Bc1 {[%emt 0:03:48]} Nd5 {[%emt 0:03:07]} 13. Qb3 {[%emt 0:01:54]} Na5 {[%emt 0:02:04]} 14. Qb2 {[%emt 0:02:20]} Nc4 {[%emt 0:03:50]} 15. Qb3 {[%emt 0:00:25]} Na5 {[%emt 0:01:33]} 16. Qb2 {[%emt 0:00:20]} Nc4 {[%emt 0:02:00]} 17. Qb3 {[%emt 0:00:09]} 1/2-1/2

[Event "69th GRE-ch 2019"]
[Site "Thessaloniki"]
[Date "2019.11.23"]
[Round "4.5"]
[White "Ioannidis, Evgenios"]
[Black "Malikentzos, Sotirios"]
[Result "1/2-1/2"]
[ECO "C43"]
[WhiteElo "2379"]
[BlackElo "2432"]
[Annotator "NA"]
[PlyCount "62"]
[EventDate "2019.11.20"]
[EventType "tourn"]
[EventCountry "GRE"]
[SourceTitle "playchess.com"]
[Source "ChessBase"]
[SourceQuality "1"]
[TimeControl "40/5400+30:1800+30"]

1. e4 {[%emt 0:00:09]} e5 {[%emt 0:00:00]} 2. Nf3 {[%emt 0:00:17]} Nf6 {[%emt 0:00:00]} 3. d4 {[%emt 0:00:39]} exd4 {[%emt 0:01:17]} 4. e5 {[%emt 0:00:43]} Ne4 {[%emt 0:00:25]} 5. Qxd4 {[%emt 0:00:34]} d5 {[%emt 0:00:11]} 6. exd6 {[%emt 0:00:10]} Nxd6 {[%emt 0:00:05]} 7. Nc3 {[%emt 0:05:09]} Nc6 {[%emt 0:00:24]} 8. Qf4 {[%emt 0:00:11]} Bf5 {[%emt 0:00:07]} 9. Bb5 {[%emt 0:08:36]} Qe7+ {[%emt 0:00:16]} 10. Be3 {[%emt 0:02:36]} Nxb5 {[%emt 0:00:13]} 11. Nxb5 {[%emt 0:03:18]} Qb4+ {[%emt 0:00:16]} 12. Qxb4 {[%emt 0:00:26]} Bxb4+ {[%emt 0:00:05]} 13. c3 {[%emt 0:00:29]} Bd6 {[%emt 0:00:04]} 14. Nxd6+ {[%emt 0:01:57]} cxd6 {[%emt 0:00:06]} 15. O-O-O {[%emt 0:01:50]} Be6 {[%emt 0:01:44]} 16. Rxd6 {[%emt 0:20:43]} Bxa2 {[%emt 0:01:17]} 17. Nd2 {[%emt 0:08:40]} Na5 {[%emt 0:13:54]} 18. Kc2 {[%emt 0:07:50]} Nc4 {[%emt 0:05:49]} 19. Nxc4 {[%emt 0:05:31]} Bxc4 20. Bc5 {[%emt 0:08:06]} Be6 {[%emt 0:03:03]} 21. Re1 {[%emt 0:01:15]} b6 {[%emt 0:05:54]} 22. f4 {[%emt 0:01:04]} O-O {[%emt 0:10:30]} 23. Rdxe6 {[%emt 0:00:08]} fxe6 {[%emt 0:00:04]} 24. Bxf8 {[%emt 0:00:06]} Rxf8 {[%emt 0:00:02]} 25. g3 {[%emt 0:00:48]} g5 {[%emt 0:03:24]} 26. Rxe6 {[%emt 0:06:04]} gxf4 {[%emt 0:00:12]} 27. gxf4 {[%emt 0:00:04]} Rxf4 {[%emt 0:00:04]} 28. Kb3 {[%emt 0:01:59]} Rh4 {[%emt 0:00:34]} 29. Re7 {[%emt 0:00:24]} Rxh2 {[%emt 0:01:05]} 30. Rxa7 {[%emt 0:00:04]} Rf2 {[%emt 0:00:07]} 31. Re7 {[%emt 0:03:12]} Rf6 {[%emt 0:01:43]} 1/2-1/2

[Event "69th GRE-ch 2019"]
[Site "Thessaloniki"]
[Date "2019.11.24"]
[Round "5.2"]
[White "Koutoukidis, Panagiotis"]
[Black "Ioannidis, Evgenios"]
[Result "1/2-1/2"]
[ECO "B19"]
[WhiteElo "2412"]
[BlackElo "2379"]
[Annotator "ChessBase"]
[PlyCount "87"]
[EventDate "2019.11.20"]
[EventType "tourn"]
[EventCountry "GRE"]
[SourceTitle "playchess.com"]
[Source "ChessBase"]
[SourceQuality "1"]
[TimeControl "40/5400+30:1800+30"]

1. e4 {[%emt 0:00:00]} c6 {[%emt 0:00:09]} 2. d4 {[%emt 0:00:09]} d5 {[%emt 0:00:16]} 3. Nd2 {[%emt 0:00:14]} dxe4 {[%emt 0:00:20]} 4. Nxe4 {[%emt 0:00:06]} Bf5 {[%emt 0:00:19]} 5. Ng3 {[%emt 0:00:25]} Bg6 {[%emt 0:00:15]} 6. h4 {[%emt 0:00:28]} h6 {[%emt 0:00:14]} 7. Nf3 {[%emt 0:00:07]} Nd7 {[%emt 0:00:16]} 8. h5 {[%emt 0:00:06]} Bh7 {[%emt 0:00:08]} 9. Bd3 {[%emt 0:00:05]} Bxd3 {[%emt 0:00:13]} 10. Qxd3 {[%emt 0:00:05]} e6 {[%emt 0:00:15]} 11. Bd2 {[%emt 0:00:06]} Ngf6 {[%emt 0:00:36]} 12. O-O-O {[%emt 0:00:13]} Be7 {[%emt 0:00:18]} 13. Kb1 Qb6 {[%emt 0:00:55]} 14. c4 {[%emt 0:06:52]} O-O {[%emt 0:05:21]} 15. Ne4 {[%emt 0:01:58]} Rad8 {[%emt 0:02:27]} 16. Rhg1 {[%emt 0:11:01]} Ng4 {[%emt 0:21:14]} 17. Qe2 {[%emt 0:04:05]} f5 {[%emt 0:23:24]} 18. Ng3 {[%emt 0:18:45]} c5 {[%emt 0:01:08]} 19. Bc3 {[%emt 0:11:02]} Bf6 {[%emt 0:01:41]} 20. Ne5 {[%emt 0:01:18]} Ngxe5 {[%emt 0:12:59]} 21. dxe5 {[%emt 0:00:12]} Be7 {[%emt 0:00:12]} 22. Qc2 {[%emt 0:11:05]} Qc6 {[%emt 0:05:05]} 23. f3 {[%emt 0:03:13]} Nb6 {[%emt 0:10:00]} 24. b3 {[%emt 0:00:30]} Rxd1+ {[%emt 0:00:07]} 25. Rxd1 {[%emt 0:00:14]} Rd8 {[%emt 0:00:05]} 26. Ne2 {[%emt 0:02:44]} Rxd1+ {[%emt 0:00:17]} 27. Qxd1 {[%emt 0:00:06]} Qd7 {[%emt 0:00:08]} 28. Qxd7 {[%emt 0:02:29]} Nxd7 {[%emt 0:00:05]} 29. Nf4 {[%emt 0:00:11]} Kf7 {[%emt 0:00:21]} 30. Kc2 {[%emt 0:01:03]} Bg5 {[%emt 0:03:08]} 31. Ng6 {[%emt 0:01:38]} Nf8 {[%emt 0:00:06]} 32. Nxf8 {[%emt 0:00:16]} Kxf8 {[%emt 0:00:05]} 33. g4 {[%emt 0:02:24]} fxg4 {[%emt 0:02:21]} 34. fxg4 {[%emt 0:00:10]} Ke7 {[%emt 0:00:03]} 35. Kd3 {[%emt 0:00:16]} Kd7 {[%emt 0:00:04]} 36. a3 {[%emt 0:04:26]} Kc6 {[%emt 0:00:41]} 37. b4 {[%emt 0:00:40]} a6 {[%emt 0:00:10]} 38. a4 {[%emt 0:02:40]} b5 {[%emt 0:02:18]} 39. cxb5+ {[%emt 0:01:19]} axb5 {[%emt 0:00:04]} 40. axb5+ {[%emt 0:00:00]} Kxb5 {[%emt 0:00:00]} 41. bxc5 {[%emt 0:00:38]} Kxc5 {[%emt 0:00:09]} 42. Ke4 {[%emt 0:00:06]} Be7 {[%emt 0:00:49]} 43. Ba5 {[%emt 0:00:44]} Kc6 {[%emt 0:00:23]} 44. Bd2 {[%emt 0:00:12]} 1/2-1/2

[Event "69th GRE-ch 2019"]
[Site "Thessaloniki"]
[Date "2019.11.24"]
[Round "5.3"]
[White "Kalogeris, Ioannis"]
[Black "Kanakaris, Georgios"]
[Result "0-1"]
[ECO "B52"]
[WhiteElo "2330"]
[BlackElo "2395"]
[Annotator "ChessBase"]
[PlyCount "60"]
[EventDate "2019.11.20"]
[EventType "tourn"]
[EventCountry "GRE"]
[SourceTitle "playchess.com"]
[Source "ChessBase"]
[SourceQuality "1"]
[TimeControl "40/5400+30:1800+30"]

1. e4 {[%emt 0:00:00]} c5 {[%emt 0:00:00]} 2. Nf3 {[%emt 0:00:04]} d6 {[%emt 0:00:00]} 3. Bb5+ {[%emt 0:00:05]} Bd7 {[%emt 0:00:42]} 4. Bxd7+ {[%emt 0:00:17]} Qxd7 {[%emt 0:00:06]} 5. c4 {[%emt 0:00:16]} g6 {[%emt 0:03:25]} 6. O-O {[%emt 0:02:21]} Bg7 {[%emt 0:00:29]} 7. d4 {[%emt 0:00:29]} Nf6 {[%emt 0:16:48]} 8. Nc3 {[%emt 0:04:46]} cxd4 {[%emt 0:00:39]} 9. Nxd4 {[%emt 0:03:41]} Nc6 10. Nc2 {[%emt 0:00:29]} O-O {[%emt 0:05:56]} 11. b3 {[%emt 0:03:28]} Rac8 {[%emt 0:05:43]} 12. Qd3 {[%emt 0:02:15]} Rfd8 {[%emt 0:12:08]} 13. Bg5 {[%emt 0:07:43]} Qg4 {[%emt 0:20:23]} 14. Qe3 {[%emt 0:11:14]} Qh5 {[%emt 0:04:11]} 15. h3 {[%emt 0:08:04]} h6 {[%emt 0:00:12]} 16. Bf4 {[%emt 0:02:09]} Qa5 {[%emt 0:03:41]} 17. Qe1 {[%emt 0:04:31]} e6 {[%emt 0:03:48]} 18. Nb5 {[%emt 0:05:00]} Qxe1 {[%emt 0:03:09]} 19. Raxe1 {[%emt 0:00:49]} Bf8 {[%emt 0:02:08]} 20. Be3 {[%emt 0:17:04]} Nxe4 {[%emt 0:00:51]} 21. Nxa7 {[%emt 0:04:17]} Nxa7 {[%emt 0:00:27]} 22. Bxa7 {[%emt 0:00:12]} Nd2 {[%emt 0:00:07]} 23. Bb6 {[%emt 0:01:23]} Re8 {[%emt 0:00:16]} 24. Ne3 {[%emt 0:04:22]} Nxf1 {[%emt 0:00:43]} 25. Kxf1 {[%emt 0:00:03]} Rc6 {[%emt 0:00:43]} 26. c5 {[%emt 0:04:53]} dxc5 {[%emt 0:00:35]} 27. Nc4 {[%emt 0:00:01]} Bg7 {[%emt 0:06:44]} 28. Rd1 {[%emt 0:03:40]} Bd4 {[%emt 0:00:52]} 29. g4 {[%emt 0:02:35]} e5 {[%emt 0:00:12]} 30. Kg2 {[%emt 0:00:47]} Ree6 {[%emt 0:00:27]} 0-1

[Event "69th GRE-ch 2019"]
[Site "Thessaloniki"]
[Date "2019.11.24"]
[Round "5.4"]
[White "Papadopoulos, Georgios"]
[Black "Megalios, Konstantinos"]
[Result "1/2-1/2"]
[ECO "E48"]
[WhiteElo "2378"]
[BlackElo "2386"]
[Annotator "RC"]
[PlyCount "86"]
[EventDate "2019.11.20"]
[EventType "tourn"]
[EventCountry "GRE"]
[SourceTitle "playchess.com"]
[Source "ChessBase"]
[SourceQuality "1"]
[TimeControl "40/5400+30:1800+30"]

1. d4 {[%emt 0:00:00]} Nf6 {[%emt 0:00:00]} 2. c4 {[%emt 0:00:00]} e6 {[%emt 0:00:00]} 3. Nc3 {[%emt 0:00:00]} Bb4 {[%emt 0:00:00]} 4. e3 {[%emt 0:00:00]} O-O {[%emt 0:00:19]} 5. Bd3 {[%emt 0:00:00]} d5 {[%emt 0:00:41]} 6. Nf3 {[%emt 0:00:03]} dxc4 {[%emt 0:01:50]} 7. Bxc4 {[%emt 0:00:08]} b6 {[%emt 0:00:41]} 8. O-O {[%emt 0:04:11]} Bb7 {[%emt 0:00:15]} 9. Qe2 {[%emt 0:01:48]} Nbd7 {[%emt 0:01:36]} 10. Rd1 {[%emt 0:01:18]} Qe7 {[%emt 0:02:24]} 11. a3 {[%emt 0:08:50]} Bxc3 {[%emt 0:07:31]} 12. bxc3 {[%emt 0:00:07]} Ne4 {[%emt 0:00:11]} 13. Qc2 {[%emt 0:06:18]} Nd6 {[%emt 0:01:44]} 14. Be2 {[%emt 0:02:11]} e5 {[%emt 0:01:52]} 15. a4 {[%emt 0:06:17]} Rfe8 {[%emt 0:07:13]} 16. a5 {[%emt 0:07:36]} Rad8 {[%emt 0:11:31]} 17. axb6 {[%emt 0:02:08]} axb6 {[%emt 0:00:09]} 18. Ba3 {[%emt 0:01:05]} Qf6 {[%emt 0:05:12]} 19. Bxd6 {[%emt 0:02:55]} Qxd6 {[%emt 0:02:31]} 20. dxe5 {[%emt 0:19:44]} Qe7 {[%emt 0:19:29]} 21. Bb5 {[%emt 0:01:04]} Rf8 {[%emt 0:03:44]} 22. Qf5 {[%emt 0:06:15]} Nc5 {[%emt 0:05:34]} 23. Nd4 {[%emt 0:00:57]} g6 {[%emt 0:02:23]} 24. Qf4 {[%emt 0:00:45]} Rd5 {[%emt 0:03:55]} 25. Bc6 {[%emt 0:07:28]} Bxc6 {[%emt 0:00:45]} 26. Nxc6 {[%emt 0:00:02]} Rxd1+ {[%emt 0:00:09]} 27. Rxd1 {[%emt 0:00:03]} Qe6 {[%emt 0:00:13]} 28. Qf6 {[%emt 0:01:34]} Re8 {[%emt 0:06:01]} 29. Rd8 {[%emt 0:05:07]} Rxd8 {[%emt 0:02:57]} 30. Qxd8+ {[%emt 0:00:02]} Kg7 {[%emt 0:00:07]} 31. Qxc7 {[%emt 0:00:15]} Qa2 {[%emt 0:01:02]} 32. h3 {[%emt 0:01:35]} Ne4 {[%emt 0:03:57]} 33. e6 {[%emt 0:02:20]} Qxf2+ {[%emt 0:01:00]} 34. Kh2 {[%emt 0:00:07]} Nd2 {[%emt 0:00:29]} 35. Qe5+ {[%emt 0:09:51]} Kh6 {[%emt 0:00:21]} 36. Qf4+ {[%emt 0:00:24]} Qxf4+ {[%emt 0:00:02]} 37. exf4 {[%emt 0:00:01]} fxe6 {[%emt 0:00:25]} 38. Nd4 {[%emt 0:00:16]} Ne4 {[%emt 0:07:23]} 39. Nxe6 {[%emt 0:03:43]} Nxc3 {[%emt 0:00:02]} 40. h4 {[%emt 0:00:00]} Ne4 {[%emt 0:00:00]} 41. g4 {[%emt 0:09:37]} Nc5 {[%emt 0:02:18]} 42. Nd4 {[%emt 0:00:38]} Kg7 {[%emt 0:00:54]} 43. Kg3 {[%emt 0:00:13]} Kf7 {[%emt 0:01:16]} 1/2-1/2